[Event "2nd ESNAICC Women 2024"]
[Site "Andorra la Vella"]
[Date "2024.06.24"]
[Round "2.5"]
[White "Nevska, Gerda"]
[Black "Thornton, Filipina"]
[Result "1-0"]
[ECO "A26"]
[WhiteElo "1872"]
[BlackElo "1787"]
[Annotator "NA RC"]
[PlyCount "59"]
[EventDate "2024.06.24"]
[EventType "tourn"]
[EventCountry "AND"]
[SourceTitle "playchess.com"]
[Source "ChessBase"]
[SourceQuality "1"]
[TimeControl "40/5400+30:1800+30"]

1. c4 {[%emt 0:00:08]} e5 {[%emt 0:01:02]} 2. Nc3 {[%emt 0:00:16]} g6 {[%emt 0:00:29]} 3. g3 {[%emt 0:00:05]} Bg7 {[%emt 0:00:14]} 4. Bg2 {[%emt 0:00:07]} Nc6 {[%emt 0:00:19]} 5. d3 {[%emt 0:02:34]} d6 {[%emt 0:01:18]} 6. e4 {[%emt 0:00:21]} f5 {[%emt 0:01:08]} 7. exf5 {[%emt 0:01:34]} Bxf5 {[%emt 0:00:42]} 8. Nge2 {[%emt 0:02:46]} Nf6 {[%emt 0:03:35]} 9. O-O {[%emt 0:01:41]} O-O {[%emt 0:01:09]} 10. h3 {[%emt 0:05:01]} Qc8 {[%emt 0:02:39]} 11. Kh2 {[%emt 0:00:10]} Nb4 {[%emt 0:00:14]} 12. Ne4 {[%emt 0:01:58]} d5 {[%emt 0:12:13]} 13. Nxf6+ {[%emt 0:03:38]} Bxf6 {[%emt 0:01:43]} 14. g4 {[%emt 0:15:08]} Bxd3 {[%emt 0:23:09]} 15. a3 {[%emt 0:06:13]} Bxe2 {[%emt 0:05:30]} 16. Qxe2 {[%emt 0:00:54]} Na6 {[%emt 0:06:06]} 17. Bh6 {[%emt 0:01:35]} e4 {[%emt 0:17:25]} 18. Bxf8 {[%emt 0:02:14]} Qxf8 {[%emt 0:00:35]} 19. f4 {[%emt 0:01:59]} c6 {[%emt 0:01:25]} 20. cxd5 {[%emt 0:01:59]} cxd5 {[%emt 0:00:27]} 21. g5 {[%emt 0:08:44]} Bg7 {[%emt 0:01:13]} 22. Qb5 {[%emt 0:00:20]} Qd6 {[%emt 0:03:39]} 23. Rad1 {[%emt 0:10:55]} Nc7 {[%emt 0:03:31]} 24. Qb3 {[%emt 0:05:48]} Rf8 {[%emt 0:03:52]} 25. Bxe4 {[%emt 0:00:47]} Rxf4 {[%emt 0:00:50]} 26. Bxd5+ {[%emt 0:06:35]} Kh8 {[%emt 0:01:12]} 27. Bg2 {[%emt 0:00:46]} Qf8 {[%emt 0:03:01]} 28. Rxf4 {[%emt 0:01:07]} Qxf4+ {[%emt 0:00:09]} 29. Qg3 {[%emt 0:00:10]} Qa4 {[%emt 0:01:14]} 30. Qxc7 {[%emt 0:00:38]} 1-0

[Event "2nd ESNAICC Women 2024"]
[Site "Andorra la Vella"]
[Date "2024.06.24"]
[Round "3.2"]
[White "Zvereva, Marija"]
[Black "Nevska, Gerda"]
[Result "1-0"]
[ECO "B00"]
[WhiteElo "2040"]
[BlackElo "1872"]
[Annotator "NA RC"]
[PlyCount "29"]
[EventDate "2024.06.24"]
[EventType "tourn"]
[EventCountry "AND"]
[SourceTitle "playchess.com"]
[Source "ChessBase"]
[SourceQuality "1"]
[TimeControl "40/5400+30:1800+30"]

1. e4 {[%emt 0:00:12]} Nc6 {[%emt 0:00:36]} 2. d4 {[%emt 0:01:02]} e5 {[%emt 0:00:11]} 3. d5 {[%emt 0:15:28]} Nce7 {[%emt 0:00:31]} 4. f4 {[%emt 0:02:09]} Ng6 {[%emt 0:02:06]} 5. Ne2 {[%emt 0:13:19]} exf4 {[%emt 0:04:21]} 6. Nxf4 {[%emt 0:08:13]} Bc5 {[%emt 0:06:06]} 7. Nc3 {[%emt 0:08:37]} Nf6 {[%emt 0:05:16]} 8. Nxg6 {[%emt 0:08:45]} hxg6 {[%emt 0:07:53]} 9. Qf3 {[%emt 0:02:28]} Qe7 {[%emt 0:01:18]} 10. Bg5 {[%emt 0:03:18]} Rh5 {[%emt 0:07:22]} 11. h4 {[%emt 0:03:50]} Bd4 {[%emt 0:10:55]} 12. O-O-O {[%emt 0:08:47]} Be5 {[%emt 0:00:46]} 13. d6 {[%emt 0:06:10]} Bxd6 {[%emt 0:04:52]} 14. Nd5 {[%emt 0:00:27]} Qxe4 {[%emt 0:02:06]} 15. Nxf6+ {[%emt 0:00:17]} 1-0

[Event "2nd ESNAICC Women 2024"]
[Site "Andorra la Vella"]
[Date "2024.06.24"]
[Round "3.3"]
[White "Ruddy, Rachel"]
[Black "Markidou, Christianna"]
[Result "0-1"]
[ECO "D32"]
[WhiteElo "1719"]
[BlackElo "1676"]
[Annotator "NA RC"]
[PlyCount "80"]
[EventDate "2024.06.24"]
[EventType "tourn"]
[EventCountry "AND"]
[SourceTitle "playchess.com"]
[Source "ChessBase"]
[SourceQuality "1"]
[TimeControl "40/5400+30:1800+30"]

1. d4 {[%emt 0:00:05]} d5 {[%emt 0:00:04]} 2. c4 {[%emt 0:00:05]} e6 {[%emt 0:00:08]} 3. Nc3 {[%emt 0:00:07]} c5 {[%emt 0:00:26]} 4. Nf3 {[%emt 0:03:41]} Nc6 {[%emt 0:03:53]} 5. cxd5 {[%emt 0:01:50]} exd5 {[%emt 0:01:15]} 6. e3 {[%emt 0:03:15]} Bf5 {[%emt 0:02:45]} 7. Bd3 {[%emt 0:04:52]} Bxd3 {[%emt 0:04:47]} 8. Qxd3 {[%emt 0:00:09]} c4 {[%emt 0:03:56]} 9. Qe2 {[%emt 0:01:54]} Bb4 {[%emt 0:28:06]} 10. O-O {[%emt 0:01:34]} Bxc3 {[%emt 0:00:05]} 11. bxc3 {[%emt 0:00:10]} Nf6 {[%emt 0:00:38]} 12. Bb2 {[%emt 0:12:12]} O-O {[%emt 0:00:24]} 13. a4 {[%emt 0:01:43]} Re8 {[%emt 0:01:48]} 14. Qc2 {[%emt 0:06:33]} Ne4 {[%emt 0:03:28]} 15. Rae1 {[%emt 0:02:28]} a6 {[%emt 0:03:10]} 16. Nd2 {[%emt 0:01:46]} Nxd2 {[%emt 0:01:03]} 17. Qxd2 {[%emt 0:00:14]} Qa5 {[%emt 0:01:49]} 18. Ra1 {[%emt 0:01:58]} Re6 {[%emt 0:07:13]} 19. Rfb1 {[%emt 0:02:38]} Qc7 {[%emt 0:01:04]} 20. Qe2 {[%emt 0:03:04]} Na5 {[%emt 0:00:35]} 21. Ra2 {[%emt 0:07:16]} Nb3 {[%emt 0:00:44]} 22. f3 {[%emt 0:06:57]} f5 {[%emt 0:00:43]} 23. Re1 {[%emt 0:01:52]} a5 {[%emt 0:00:31]} 24. Qc2 {[%emt 0:00:52]} g6 {[%emt 0:00:24]} 25. e4 {[%emt 0:00:42]} Qd7 {[%emt 0:03:09]} 26. e5 {[%emt 0:02:12]} b5 {[%emt 0:00:17]} 27. axb5 {[%emt 0:01:40]} Qxb5 {[%emt 0:00:08]} 28. f4 {[%emt 0:03:29]} Qd7 {[%emt 0:02:44]} 29. h4 {[%emt 0:00:51]} Qg7 {[%emt 0:09:34]} 30. h5 {[%emt 0:04:36]} Qh6 {[%emt 0:00:37]} 31. hxg6 {[%emt 0:01:45]} hxg6 {[%emt 0:03:33]} 32. Qf2 {[%emt 0:02:08]} Kf7 {[%emt 0:00:32]} 33. Re3 {[%emt 0:01:03]} Qh5 {[%emt 0:01:48]} 34. Ba3 {[%emt 0:07:15]} Rh8 {[%emt 0:00:36]} 35. Kf1 {[%emt 0:01:07]} Qd1+ {[%emt 0:00:36]} 36. Re1 {[%emt 0:02:02]} Rh1+ {[%emt 0:00:16]} 37. Qg1 {[%emt 0:00:55]} Rxg1+ {[%emt 0:00:13]} 38. Kxg1 {[%emt 0:00:04]} Qxe1+ {[%emt 0:00:12]} 39. Kh2 {[%emt 0:00:15]} Qxc3 {[%emt 0:00:18]} 40. Bb2 {[%emt 0:00:00]} Qc2 {[%emt 0:00:00]} 0-1

[Event "2nd ESNAICC Women 2024"]
[Site "Andorra la Vella"]
[Date "2024.06.24"]
[Round "3.4"]
[White "Muratet Carmona, Julia"]
[Black "Berend, Elvira"]
[Result "1/2-1/2"]
[ECO "B30"]
[WhiteElo "1834"]
[BlackElo "2230"]
[Annotator "RC"]
[PlyCount "78"]
[EventDate "2024.06.24"]
[EventType "tourn"]
[EventCountry "AND"]
[SourceTitle "playchess.com"]
[Source "ChessBase"]
[SourceQuality "1"]
[TimeControl "40/5400+30:1800+30"]

1. e4 {[%emt 0:00:02]} c5 {[%emt 0:03:52]} 2. c4 {[%emt 0:01:20]} Nc6 {[%emt 0:00:21]} 3. Nf3 {[%emt 0:00:28]} e5 {[%emt 0:03:54]} 4. Nc3 {[%emt 0:01:22]} d6 {[%emt 0:00:09]} 5. d3 {[%emt 0:00:36]} Nf6 {[%emt 0:03:53]} 6. Bg5 {[%emt 0:02:39]} Be7 {[%emt 0:00:12]} 7. Be2 {[%emt 0:05:14]} O-O {[%emt 0:01:40]} 8. O-O {[%emt 0:00:41]} Ne8 {[%emt 0:01:58]} 9. Bxe7 {[%emt 0:07:43]} Qxe7 {[%emt 0:00:48]} 10. Nd5 {[%emt 0:00:45]} Qd8 {[%emt 0:00:11]} 11. a3 {[%emt 0:01:15]} Nc7 {[%emt 0:02:00]} 12. Qd2 {[%emt 0:09:48]} Ne6 {[%emt 0:01:51]} 13. b4 {[%emt 0:02:49]} Ned4 {[%emt 0:02:10]} 14. Nxd4 {[%emt 0:00:57]} Nxd4 {[%emt 0:00:08]} 15. Rab1 {[%emt 0:00:31]} b6 {[%emt 0:03:42]} 16. f4 {[%emt 0:03:54]} exf4 {[%emt 0:00:33]} 17. Rxf4 {[%emt 0:05:43]} Be6 {[%emt 0:11:53]} 18. Ne3 {[%emt 0:04:38]} a6 {[%emt 0:06:18]} 19. Nc2 {[%emt 0:04:39]} Nxc2 {[%emt 0:05:46]} 20. Qxc2 {[%emt 0:00:06]} Qg5 {[%emt 0:00:08]} 21. Rbf1 {[%emt 0:00:59]} Qe5 {[%emt 0:01:34]} 22. R4f3 {[%emt 0:06:39]} b5 {[%emt 0:01:08]} 23. Rg3 {[%emt 0:02:57]} Rfc8 {[%emt 0:09:57]} 24. Rc1 {[%emt 0:10:20]} Rab8 {[%emt 0:03:39]} 25. bxc5 {[%emt 0:13:01]} bxc4 {[%emt 0:13:33]} 26. dxc4 {[%emt 0:01:44]} Rb2 {[%emt 0:01:17]} 27. Qd3 {[%emt 0:01:25]} dxc5 {[%emt 0:04:45]} 28. Bg4 {[%emt 0:02:29]} Bxg4 {[%emt 0:07:47]} 29. Rxg4 {[%emt 0:00:05]} Re8 {[%emt 0:00:10]} 30. Qc3 {[%emt 0:01:01]} f5 {[%emt 0:03:48]} 31. Qxe5 {[%emt 0:02:39]} Rxe5 {[%emt 0:00:05]} 32. exf5 {[%emt 0:00:08]} Rxf5 {[%emt 0:00:10]} 33. Rg3 {[%emt 0:00:48]} Rf4 {[%emt 0:00:46]} 34. h3 {[%emt 0:00:16]} h6 {[%emt 0:00:10]} 35. Rd1 {[%emt 0:01:44]} Rb7 {[%emt 0:00:18]} 36. Rd6 {[%emt 0:00:22]} Rxc4 {[%emt 0:01:36]} 37. Rxa6 {[%emt 0:00:24]} Kh7 {[%emt 0:00:06]} 38. Rc6 {[%emt 0:01:11]} Rc2 {[%emt 0:02:04]} 39. a4 {[%emt 0:00:33]} Ra2 {[%emt 0:02:19]} 1/2-1/2

[Event "2nd ESNAICC Women 2024"]
[Site "Andorra la Vella"]
[Date "2024.06.24"]
[Round "3.5"]
[White "De la Riva Real, Ariadna"]
[Black "Henderson de La Fuente, Andrea"]
[Result "1/2-1/2"]
[ECO "B02"]
[WhiteElo "1774"]
[BlackElo "1966"]
[Annotator "NA RC"]
[PlyCount "23"]
[EventDate "2024.06.24"]
[EventType "tourn"]
[EventCountry "AND"]
[SourceTitle "playchess.com"]
[Source "ChessBase"]
[SourceQuality "1"]
[TimeControl "40/5400+30:1800+30"]

1. e4 {[%emt 0:00:03]} Nf6 {[%emt 0:00:07]} 2. Nc3 {[%emt 0:00:13]} d5 {[%emt 0:00:07]} 3. exd5 {[%emt 0:01:06]} Nxd5 {[%emt 0:00:09]} 4. Nge2 {[%emt 0:03:44]} Bf5 {[%emt 0:04:49]} 5. g3 {[%emt 0:05:08]} c6 {[%emt 0:12:29]} 6. a4 {[%emt 0:03:44]} Bxc2 {[%emt 0:12:03]} 7. Qxc2 {[%emt 0:03:57]} Nb4 {[%emt 0:00:04]} 8. Qb3 {[%emt 0:05:52]} Nd3+ {[%emt 0:00:13]} 9. Kd1 {[%emt 0:00:28]} Nxf2+ {[%emt 0:00:08]} 10. Ke1 {[%emt 0:00:11]} Nd3+ {[%emt 0:06:05]} 11. Kd1 {[%emt 0:01:09]} Nf2+ {[%emt 0:00:04]} 12. Ke1 {[%emt 0:00:09]} 1/2-1/2

[Event "2nd ESNAICC Women 2024"]
[Site "Andorra la Vella"]
[Date "2024.06.25"]
[Round "4.2"]
[White "Berend, Elvira"]
[Black "De la Riva Real, Ariadna"]
[Result "0-1"]
[ECO "B27"]
[WhiteElo "2230"]
[BlackElo "1774"]
[Annotator "RC"]
[PlyCount "79"]
[EventDate "2024.06.24"]
[EventType "tourn"]
[EventCountry "AND"]
[SourceTitle "playchess.com"]
[Source "ChessBase"]
[SourceQuality "1"]
[TimeControl "40/5400+30:1800+30"]

1. e4 {[%emt 0:00:07]} c5 {[%emt 0:00:08]} 2. Nf3 {[%emt 0:00:05]} g6 {[%emt 0:00:16]} 3. c3 {[%emt 0:00:12]} d5 {[%emt 0:01:08]} 4. e5 {[%emt 0:00:11]} Bg7 {[%emt 0:01:20]} 5. d4 {[%emt 0:00:09]} cxd4 {[%emt 0:01:50]} 6. cxd4 {[%emt 0:00:10]} f6 {[%emt 0:05:20]} 7. h3 {[%emt 0:06:57]} a6 {[%emt 0:06:09]} 8. Bd3 {[%emt 0:06:39]} Nc6 {[%emt 0:04:23]} 9. Bf4 {[%emt 0:01:21]} Nh6 {[%emt 0:04:58]} 10. O-O {[%emt 0:05:03]} O-O {[%emt 0:00:36]} 11. Qd2 {[%emt 0:01:56]} Nf7 {[%emt 0:02:05]} 12. Re1 {[%emt 0:03:55]} Nxd4 {[%emt 0:14:08]} 13. Nxd4 {[%emt 0:05:30]} fxe5 {[%emt 0:00:14]} 14. Bxe5 {[%emt 0:00:10]} Nxe5 {[%emt 0:00:39]} 15. Nc3 {[%emt 0:06:52]} Qb6 {[%emt 0:14:01]} 16. Bf1 {[%emt 0:07:35]} Nc4 {[%emt 0:09:05]} 17. Bxc4 {[%emt 0:05:12]} dxc4 {[%emt 0:06:24]} 18. Nf3 {[%emt 0:00:10]} e6 {[%emt 0:11:33]} 19. Rad1 {[%emt 0:00:12]} Qc5 {[%emt 0:01:38]} 20. Ne4 {[%emt 0:00:43]} Qh5 {[%emt 0:01:53]} 21. Qe2 {[%emt 0:02:47]} b5 {[%emt 0:00:43]} 22. Nd6 {[%emt 0:00:36]} Rf6 {[%emt 0:06:30]} 23. Qe4 {[%emt 0:01:26]} Rb8 {[%emt 0:00:23]} 24. Qc6 {[%emt 0:00:17]} Rf8 {[%emt 0:00:33]} 25. Nxc8 {[%emt 0:02:43]} Rbxc8 {[%emt 0:01:06]} 26. Qxe6+ {[%emt 0:00:15]} Kh8 {[%emt 0:00:09]} 27. Re2 {[%emt 0:06:21]} a5 {[%emt 0:00:47]} 28. g4 {[%emt 0:01:04]} Qc5 {[%emt 0:00:49]} 29. Ne5 {[%emt 0:01:39]} Bxe5 {[%emt 0:00:23]} 30. Qxe5+ {[%emt 0:00:10]} Qxe5 {[%emt 0:00:06]} 31. Rxe5 {[%emt 0:00:03]} c3 {[%emt 0:03:09]} 32. bxc3 {[%emt 0:00:08]} Rxc3 {[%emt 0:00:01]} 33. Rxb5 {[%emt 0:00:26]} Ra3 {[%emt 0:00:21]} 34. Rd2 {[%emt 0:00:10]} Kg7 {[%emt 0:00:31]} 35. Kg2 {[%emt 0:00:23]} Kh6 {[%emt 0:01:19]} 36. Rd7 {[%emt 0:00:49]} Rh8 {[%emt 0:01:54]} 37. h4 {[%emt 0:01:54]} Ra4 {[%emt 0:00:16]} 38. Kg3 {[%emt 0:00:10]} Ra3+ {[%emt 0:00:32]} 39. f3 {[%emt 0:00:06]} Rxa2 {[%emt 0:00:57]} 40. Rbb7 {[%emt 0:00:00]} 0-1

[Event "2nd ESNAICC Women 2024"]
[Site "Andorra la Vella"]
[Date "2024.06.25"]
[Round "4.3"]
[White "Markidou, Christianna"]
[Black "Muratet Carmona, Julia"]
[Result "0-1"]
[ECO "B01"]
[WhiteElo "1676"]
[BlackElo "1834"]
[Annotator "NA RC"]
[PlyCount "74"]
[EventDate "2024.06.24"]
[EventType "tourn"]
[EventCountry "AND"]
[SourceTitle "playchess.com"]
[Source "ChessBase"]
[SourceQuality "1"]
[TimeControl "40/5400+30:1800+30"]

1. e4 {[%emt 0:00:04]} d5 {[%emt 0:00:11]} 2. exd5 {[%emt 0:00:34]} Nf6 {[%emt 0:00:13]} 3. d4 {[%emt 0:00:24]} Bg4 {[%emt 0:00:37]} 4. Nf3 {[%emt 0:01:41]} Qxd5 {[%emt 0:03:40]} 5. Be2 {[%emt 0:03:08]} e6 {[%emt 0:04:43]} 6. O-O {[%emt 0:00:32]} Nc6 {[%emt 0:03:08]} 7. c4 {[%emt 0:13:02]} Qd7 {[%emt 0:06:03]} 8. Be3 {[%emt 0:03:15]} O-O-O {[%emt 0:07:46]} 9. Nbd2 {[%emt 0:22:27]} Bb4 {[%emt 0:02:35]} 10. Nb3 {[%emt 0:02:44]} Be7 {[%emt 0:22:26]} 11. a3 {[%emt 0:01:18]} Ne4 {[%emt 0:01:58]} 12. Qc2 {[%emt 0:16:37]} Bf5 {[%emt 0:05:24]} 13. Bd3 {[%emt 0:00:15]} Nd6 {[%emt 0:00:28]} 14. d5 {[%emt 0:03:44]} Bxd3 {[%emt 0:02:24]} 15. Qxd3 {[%emt 0:00:08]} Nf5 {[%emt 0:00:55]} 16. Rfd1 {[%emt 0:05:26]} b6 {[%emt 0:14:51]} 17. Rac1 {[%emt 0:04:36]} Bf6 {[%emt 0:03:48]} 18. c5 {[%emt 0:05:05]} Nb8 {[%emt 0:04:33]} 19. cxb6 {[%emt 0:00:43]} axb6 {[%emt 0:12:45]} 20. Bxb6 {[%emt 0:00:55]} c6 {[%emt 0:00:24]} 21. Bxd8 {[%emt 0:09:05]} Rxd8 {[%emt 0:00:04]} 22. Qc2 {[%emt 0:02:13]} Qc7 {[%emt 0:00:37]} 23. dxe6 {[%emt 0:00:25]} Rxd1+ {[%emt 0:00:14]} 24. Rxd1 {[%emt 0:00:24]} fxe6 {[%emt 0:00:03]} 25. Nc5 {[%emt 0:00:18]} Qe7 {[%emt 0:00:26]} 26. h3 {[%emt 0:00:31]} Bxb2 {[%emt 0:03:14]} 27. Qxb2 {[%emt 0:02:11]} Qxc5 {[%emt 0:00:00]} 28. Qb3 {[%emt 0:00:52]} Qe7 {[%emt 0:00:00]} 29. g4 {[%emt 0:00:30]} Nd6 {[%emt 0:00:00]} 30. a4 {[%emt 0:00:38]} Kc7 {[%emt 0:00:00]} 31. a5 {[%emt 0:00:14]} Nb5 {[%emt 0:00:28]} 32. Re1 {[%emt 0:00:51]} Kd7 {[%emt 0:00:44]} 33. Ne5+ {[%emt 0:00:25]} Kc7 {[%emt 0:00:54]} 34. Rc1 {[%emt 0:00:23]} Qg5 {[%emt 0:01:13]} 35. Nd3 {[%emt 0:00:49]} Qd2 {[%emt 0:00:29]} 36. Rd1 {[%emt 0:01:22]} Qe2 {[%emt 0:00:15]} 37. Re1 {[%emt 0:00:19]} Qf3 {[%emt 0:00:40]} 0-1

[Event "2nd ESNAICC Women 2024"]
[Site "Andorra la Vella"]
[Date "2024.06.25"]
[Round "4.4"]
[White "Nevska, Gerda"]
[Black "Ruddy, Rachel"]
[Result "1-0"]
[ECO "C00"]
[WhiteElo "1872"]
[BlackElo "1719"]
[Annotator "NA RC"]
[PlyCount "85"]
[EventDate "2024.06.24"]
[EventType "tourn"]
[EventCountry "AND"]
[SourceTitle "playchess.com"]
[Source "ChessBase"]
[SourceQuality "1"]
[TimeControl "40/5400+30:1800+30"]

1. e4 {[%emt 0:00:13]} e6 {[%emt 0:00:17]} 2. Nf3 {[%emt 0:00:09]} d5 {[%emt 0:00:25]} 3. Nc3 {[%emt 0:00:08]} Ne7 {[%emt 0:00:40]} 4. b3 {[%emt 0:01:54]} c5 {[%emt 0:01:18]} 5. d4 {[%emt 0:04:17]} dxe4 {[%emt 0:03:01]} 6. Nxe4 {[%emt 0:00:28]} Nf5 {[%emt 0:04:44]} 7. dxc5 {[%emt 0:04:02]} Qxd1+ {[%emt 0:02:21]} 8. Kxd1 {[%emt 0:00:40]} Nc6 {[%emt 0:00:52]} 9. Bb5 {[%emt 0:01:18]} f6 {[%emt 0:04:08]} 10. g4 {[%emt 0:00:36]} Nh6 {[%emt 0:01:47]} 11. Bxh6 {[%emt 0:00:51]} gxh6 {[%emt 0:00:05]} 12. Nxf6+ {[%emt 0:00:26]} Kf7 {[%emt 0:01:15]} 13. Ne4 {[%emt 0:00:37]} Bg7 {[%emt 0:04:23]} 14. c3 {[%emt 0:05:13]} Rd8+ {[%emt 0:01:01]} 15. Kc2 {[%emt 0:01:00]} Ne5 {[%emt 0:03:55]} 16. Nxe5+ {[%emt 0:05:07]} Bxe5 {[%emt 0:00:12]} 17. Rad1 {[%emt 0:01:17]} Rf8 {[%emt 0:05:19]} 18. h3 {[%emt 0:06:32]} a6 {[%emt 0:01:31]} 19. Bc4 {[%emt 0:01:40]} Ke7 {[%emt 0:00:24]} 20. Rhf1 {[%emt 0:02:03]} Bd7 {[%emt 0:01:15]} 21. b4 {[%emt 0:10:38]} Bc6 {[%emt 0:05:56]} 22. f3 {[%emt 0:00:55]} Rac8 {[%emt 0:01:51]} 23. Rde1 {[%emt 0:01:25]} Bd7 {[%emt 0:07:15]} 24. Bb3 {[%emt 0:04:14]} Rc7 {[%emt 0:07:09]} 25. h4 {[%emt 0:09:35]} Bb5 {[%emt 0:02:05]} 26. Rf2 {[%emt 0:01:31]} Bd7 {[%emt 0:01:29]} 27. a4 {[%emt 0:00:44]} Bf4 {[%emt 0:01:04]} 28. g5 {[%emt 0:04:46]} e5 {[%emt 0:01:38]} 29. gxh6 {[%emt 0:05:04]} Bf5 {[%emt 0:01:58]} 30. Rg2 {[%emt 0:00:57]} Bxh6 {[%emt 0:01:20]} 31. Kb2 {[%emt 0:04:29]} Bg6 {[%emt 0:03:40]} 32. Ng5 {[%emt 0:01:32]} Bg7 {[%emt 0:01:30]} 33. Ne6 {[%emt 0:00:14]} Rxf3 {[%emt 0:04:23]} 34. Nxc7 {[%emt 0:02:44]} e4 {[%emt 0:00:18]} 35. Nd5+ {[%emt 0:00:12]} Kf8 {[%emt 0:00:23]} 36. Rxg6 {[%emt 0:02:52]} hxg6 {[%emt 0:00:22]} 37. Rxe4 {[%emt 0:00:09]} Rf2+ {[%emt 0:00:56]} 38. Ka3 {[%emt 0:01:06]} Bh6 {[%emt 0:00:10]} 39. Bd1 {[%emt 0:02:46]} Rd2 {[%emt 0:00:53]} 40. Rd4 {[%emt 0:00:00]} Rh2 {[%emt 0:00:00]} 41. b5 {[%emt 0:01:03]} axb5 {[%emt 0:02:31]} 42. axb5 {[%emt 0:00:08]} Bc1+ {[%emt 0:00:12]} 43. Kb4 {[%emt 0:00:31]} 1-0

[Event "2nd ESNAICC Women 2024"]
[Site "Andorra la Vella"]
[Date "2024.06.25"]
[Round "4.5"]
[White "Thornton, Filipina"]
[Black "Zvereva, Marija"]
[Result "0-1"]
[ECO "A53"]
[WhiteElo "1787"]
[BlackElo "2040"]
[Annotator "NA RC"]
[PlyCount "54"]
[EventDate "2024.06.24"]
[EventType "tourn"]
[EventCountry "AND"]
[SourceTitle "playchess.com"]
[Source "ChessBase"]
[SourceQuality "1"]
[TimeControl "40/5400+30:1800+30"]

1. d4 {[%emt 0:00:03]} Nf6 {[%emt 0:00:11]} 2. c4 {[%emt 0:00:08]} d6 {[%emt 0:00:07]} 3. Nc3 {[%emt 0:00:27]} Nbd7 {[%emt 0:00:06]} 4. f3 {[%emt 0:00:49]} e5 $11 {[%emt 0:00:12]} 5. d5 {[%emt 0:00:31]} Nh5 {[%emt 0:07:27]} 6. Nh3 {[%emt 0:03:38]} Nc5 {[%emt 0:02:23]} 7. Nf2 {[%emt 0:04:30]} a5 {[%emt 0:08:32]} 8. e4 {[%emt 0:01:48]} Be7 {[%emt 0:00:12]} 9. Be3 {[%emt 0:02:21]} Bg5 {[%emt 0:05:23]} 10. Qd2 {[%emt 0:09:52]} h6 {[%emt 0:08:47]} 11. Be2 {[%emt 0:03:28]} Bd7 {[%emt 0:01:31]} 12. O-O-O {[%emt 0:09:04]} a4 {[%emt 0:04:43]} 13. h4 {[%emt 0:05:33]} Bxe3 {[%emt 0:17:57]} 14. Qxe3 {[%emt 0:00:46]} Ng3 {[%emt 0:00:37]} 15. Rh2 {[%emt 0:02:21]} f5 {[%emt 0:08:22]} 16. f4 {[%emt 0:07:26]} exf4 {[%emt 0:00:34]} 17. Qxf4 {[%emt 0:00:49]} Nxe2+ {[%emt 0:00:09]} 18. Nxe2 {[%emt 0:00:10]} O-O {[%emt 0:00:14]} 19. Qe3 {[%emt 0:02:41]} fxe4 {[%emt 0:08:00]} 20. Nd4 {[%emt 0:14:43]} Qf6 {[%emt 0:04:23]} 21. g4 {[%emt 0:00:24]} Qf4 {[%emt 0:01:29]} 22. Qxf4 {[%emt 0:04:58]} Rxf4 {[%emt 0:00:02]} 23. g5 {[%emt 0:01:31]} Raf8 {[%emt 0:00:43]} 24. Nh1 {[%emt 0:02:15]} Nd3+ {[%emt 0:03:27]} 25. Kb1 {[%emt 0:00:34]} Bg4 {[%emt 0:04:14]} 26. Rdd2 {[%emt 0:02:05]} Rf1+ {[%emt 0:00:11]} 27. Kc2 {[%emt 0:00:29]} Rc1# {[%emt 0:00:05]} 0-1

[Event "2nd ESNAICC Women 2024"]
[Site "Andorra la Vella"]
[Date "2024.06.26"]
[Round "5.2"]
[White "Ruddy, Rachel"]
[Black "Thornton, Filipina"]
[Result "0-1"]
[ECO "B50"]
[WhiteElo "1719"]
[BlackElo "1787"]
[Annotator "NA RC"]
[PlyCount "74"]
[EventDate "2024.06.24"]
[EventType "tourn"]
[EventCountry "AND"]
[SourceTitle "playchess.com"]
[Source "ChessBase"]
[SourceQuality "1"]
[TimeControl "40/5400+30:1800+30"]

1. e4 {[%emt 0:00:04]} c5 {[%emt 0:02:11]} 2. d3 {[%emt 0:00:17]} d6 {[%emt 0:01:20]} 3. Nf3 {[%emt 0:01:05]} Nf6 {[%emt 0:01:28]} 4. h3 {[%emt 0:00:09]} e6 {[%emt 0:00:28]} 5. Nbd2 {[%emt 0:01:33]} Be7 {[%emt 0:00:18]} 6. Be2 {[%emt 0:01:01]} a6 {[%emt 0:01:53]} 7. a4 {[%emt 0:00:25]} b6 {[%emt 0:00:31]} 8. c3 {[%emt 0:00:38]} Bb7 {[%emt 0:00:21]} 9. Qc2 {[%emt 0:02:55]} Nbd7 {[%emt 0:02:20]} 10. Nf1 {[%emt 0:03:10]} Qc7 {[%emt 0:00:53]} 11. Bf4 {[%emt 0:00:55]} c4 {[%emt 0:03:58]} 12. g4 {[%emt 0:02:34]} cxd3 {[%emt 0:00:32]} 13. Bxd3 {[%emt 0:00:21]} Nc5 {[%emt 0:00:16]} 14. Ng3 {[%emt 0:00:45]} e5 {[%emt 0:04:35]} 15. Bg5 {[%emt 0:02:15]} h6 {[%emt 0:00:55]} 16. Be3 {[%emt 0:02:01]} d5 {[%emt 0:02:48]} 17. Be2 {[%emt 0:05:19]} Nfxe4 {[%emt 0:02:34]} 18. Nf5 {[%emt 0:05:09]} Bf6 {[%emt 0:04:06]} 19. Rg1 {[%emt 0:01:16]} Rc8 {[%emt 0:01:28]} 20. Rc1 {[%emt 0:12:24]} Qd7 {[%emt 0:12:06]} 21. Bd2 {[%emt 0:07:20]} Nxa4 {[%emt 0:06:58]} 22. Bd1 {[%emt 0:06:01]} b5 {[%emt 0:02:09]} 23. Qb1 {[%emt 0:04:51]} Nb6 {[%emt 0:03:31]} 24. Be3 {[%emt 0:07:07]} Nc4 {[%emt 0:01:01]} 25. Bc2 {[%emt 0:01:23]} g6 {[%emt 0:03:14]} 26. Ng3 {[%emt 0:02:48]} Nxg3 {[%emt 0:01:38]} 27. Rxg3 {[%emt 0:00:20]} e4 {[%emt 0:00:40]} 28. Bd4 {[%emt 0:02:30]} exf3 {[%emt 0:02:07]} 29. Rxf3 {[%emt 0:01:27]} Bxd4 {[%emt 0:00:43]} 30. cxd4 {[%emt 0:00:09]} Qe6+ {[%emt 0:01:12]} 31. Kd1 {[%emt 0:00:42]} O-O {[%emt 0:00:22]} 32. Bd3 {[%emt 0:00:54]} Rfe8 {[%emt 0:00:53]} 33. Kc2 {[%emt 0:00:19]} Na3+ {[%emt 0:00:17]} 34. Kb3 {[%emt 0:00:40]} Nxb1 {[%emt 0:00:17]} 35. Rxb1 {[%emt 0:00:15]} Qb6 {[%emt 0:00:42]} 36. g5 {[%emt 0:01:56]} Qa5 {[%emt 0:00:54]} 37. Bc4 {[%emt 0:00:50]} Rxc4 {[%emt 0:00:28]} 0-1